Cogmind - Beta 13 @@@ ROGUE MODE // 2024.07.26 @ 16:52:49 Player: s0lid Result: Destroyed by D-53 Grenadier with Mini Grenade Launcher Performance ------------- Evolutions (0) 0 Regions Visited (2) 400 Robots Destroyed (14) 70 Value Destroyed (323) 323 Prototype IDs (2) 40 Alien Tech Used (0) 0 Bonus (0) 0 TOTAL SCORE: 833 Bonus ------- None Cogmind --------- Core Integrity 0/250 Matter 270/300 Energy 28/100 System Corruption 0% Temperature Warm (119) Movement Core (1400) Ox27 Location -10/Mines Parts ------- > --- POWER (1) -------- (None) > --- PROPULSION (2) --- (None) > --- UTILITY (2) ------ Huge Storage Unit > --- WEAPON (2) ------- Beam Rifle > --- INVENTORY (25) --- Ion Engine Compact Wheel Huge Storage Unit Medium Matter Pod (84) Medium Matter Pod (0) Large Matter Pod (0) Large Matter Pod (0) Large Matter Pod (0) Large Matter Pod (0) Terrain Scanner EM Shotgun EM Shotgun Beam Rifle Beam Rifle Beam Rifle Grenade Launcher Grenade Launcher Mining Laser Welding Torch Heavy Explosive Trap Heavy Explosive Trap Heavy Explosive Trap Peak State ------------ > --- POWER ------------ Ion Engine > --- PROPULSION ------- Wheel Compact Wheel > --- UTILITY ---------- Huge Storage Unit Tractor Beam > --- WEAPON ----------- Beam Rifle Beam Rifle > --- INVENTORY -------- Ion Engine Compact Wheel Compact Wheel Compact Wheel Hover Unit Heat Sink Small Storage Unit Medium Matter Pod Medium Matter Pod Medium Matter Pod Medium Matter Pod Large Matter Pod Large Matter Pod Large Matter Pod Large Matter Pod Terrain Scanner ECM Suite EM Shotgun EM Shotgun EM Shotgun Beam Rifle Beam Rifle Grenade Launcher Grenade Launcher Mining Laser [Rating: 12] Favorites ----------- Power Ion Engine Engine Ion Engine Propulsion Compact Wheel Leg Aluminum Leg Wheel Compact Wheel Hover Unit Hover Unit Utility Huge Storage Unit Device Tractor Beam Storage Huge Storage Unit Weapon Beam Rifle Energy Gun Beam Rifle Build | -11 -10 -10 ------- Run | Yrd Mat Min Slots Evolved . | . . . Power . | . . . Propulsion . | . . . Utility . | . . . Weapon . | . . . Parts Attached 24 | 6 10 8 Power 5 | 1 1 3 Engine 5 | 1 1 3 Core . | . . . Reactor . | . . . Propulsion 7 | 2 3 2 Treads . | . . . Leg 1 | 1 . . Wheel 5 | 1 2 2 Hover 1 | . 1 . Flight . | . . . Utility 4 | 1 3 . Device 2 | . 2 . Storage 2 | 1 1 . Processor . | . . . Hackware . | . . . Protection . | . . . Artifact . | . . . Weapon 8 | 2 3 3 Energy Gun 8 | 2 3 3 Energy Cannon . | . . . Ballistic Gun . | . . . Ballistic Cannon . | . . . Launcher . | . . . Special Weapon . | . . . Impact Weapon . | . . . Slashing Weapon . | . . . Piercing Weapon . | . . . Special Melee Weapon . | . . . Unidentified Prototypes . | . . . Parts Lost 9 | . 1 8 Power 3 | . 1 2 Propulsion 4 | . . 4 Utility 1 | . . 1 Weapon 1 | . . 1 Highest Loss Streak 6 | . 1 6 To Critical Strikes . | . . . Average Slot Usage (%) 96 | . 96 97 Engine 13 | . 13 13 Wheel 27 | . 27 26 Device 11 | . 11 13 Storage 14 | . 14 14 Energy Gun 28 | . 28 28 Naked Turns . | . . . Heaviest Build 92 | 14 92 92 Greatest Support 32 | 16 26 32 Greatest Overweight (x) 5 | . 3 5 Average Overweight (x) 2 | . 2 2 Largest Inventory Capacity 25 | 8 25 25 Average Capacity 23 | 6 24 25 Most Carried 25 | 6 25 25 Average Carried 20 | 2 19 24 Final Capacity 25 | 8 25 25 Final Carried 25 | 6 25 22 Class Distribution -------------------- 100% | Mutant Dominant Class ---------------- Mutant | -10/Materials Mutant | -10/Mines Resources | -11 -10 -10 ----------- Run | Yrd Mat Min Matter Collected 494 | 208 144 142 Remotely 254 | . 112 142 Salvage Created 413 | . 271 142 Parts 30 | . 18 12 Haulers Intercepted 2 | . 2 . Recyclers Shooed . | . . . Parts Field Recycled . | . . . Retrieved Matter . | . . . Parts Self-Destructed . | . . . Prevented . | . . . Kills | -11 -10 -10 ------- Run | Yrd Mat Min Combat Hostiles Destroyed 12 | . 6 6 Guns 12 | . 6 6 Classes Destroyed 4 | . 3 1 Hauler 2 | . 2 . Swarmer 6 | . 3 3 Grunt 5 | . 3 2 Demolisher 1 | . . 1 Best Kill Streak 3 | . 3 2 Combat Bots Only 3 | . 3 2 Max Kills in Single Turn 2 | . 2 1 Gunslinging 1 | . 1 . Exploded . | . . . Melee . | . . . Uniques/NPCs Destroyed . | . . . Combat | -11 -10 -10 -------- Run | Yrd Mat Min Hostile Shots Fired 74 | . 22 52 Missed 17 | . 4 13 Damage Taken 1034 | . 183 851 Core 256 | . 27 229 Absorbed by Shields . | . . . Core Remaining (%) 100 | 100 . . Volleys Fired 47 | . 21 26 Largest 2 | . 2 2 Hottest 112 | . 112 112 Shots Fired 92 | . 42 50 Gun 92 | . 42 50 Cannon . | . . . Launcher . | . . . Special . | . . . Kinetic . | . . . Thermal 92 | . 42 50 Explosive . | . . . Electromagnetic . | . . . Robot Hit Streak 9 | . 7 9 Robot Miss Streak 4 | . 4 3 Penetration Max . | . . . Secondary Targets 3 | . 3 . Max Gunslinging Chain 1 | . 1 . Shots Hit Robots 44 | . 24 20 Core Hits 19 | . 11 8 Critical Kills . | . . . Critical Parts Destroyed . | . . . Critical Strikes 5 | . 5 . Burn 5 | . 5 . Melee Attacks . | . . . Impact . | . . . Slashing . | . . . Piercing . | . . . Sneak Attacks . | . . . Combat Hostiles . | . . . Follow-up Attacks . | . . . Damage Inflicted 638 | . 350 288 Guns 638 | . 350 288 Cannons . | . . . Explosions . | . . . Melee . | . . . Ramming . | . . . Kinetic . | . . . Thermal 638 | . 350 288 Explosive . | . . . Electromagnetic . | . . . Impact . | . . . Slashing . | . . . Piercing . | . . . Highest Corruption . | . . . Average Corruption . | . . . Corruption Purged . | . . . Corruption Blocked . | . . . Overload Shots . | . . . Overflow Damage . | . . . Projectiles . | . . . Explosions . | . . . Melee . | . . . Knockbacks . | . . . Impact . | . . . Kinetic . | . . . Secondary . | . . . Self-Inflicted Damage . | . . . Shots . | . . . Rammed . | . . . Targets Rammed . | . . . Kicked . | . . . Crushed . | . . . Highest Temperature 381 | . 251 381 Average Temperature 109 | . 85 128 Received Heat Transfer 222 | . 45 177 Effects 11 | . . 11 Shutdowns 1 | . . 1 Interference 9 | . . 9 Matter Decay 1 | . . 1 Siege Activations . | . . . Robots Corrupted . | . . . Combat Hostiles . | . . . Parts Fried . | . . . Impact Corruptions . | . . . Robots Melted . | . . . Combat Hostiles . | . . . Parts Melted 4 | . 1 3 Heat Transferred 2072 | . 1332 740 Parts Sabotaged . | . . . Parts Stolen . | . . . Parts Stripped . | . . . Power Chain Reactions . | . . . Alert | -11 -10 -10 ------- Run | Yrd Mat Min Peak Influence 175 | . 141 175 Initial . | . . . Average 75 | . 64 114 Maximum Alert Level . | . . . Low Security (%) 100 | 100 100 100 Level 1 . | . . . Level 2 . | . . . Level 3 . | . . . Level 4 . | . . . Level 5 . | . . . High Security . | . . . Max Security . | . . . Squads Dispatched 1 | . 1 . Investigation . | . . . Extermination . | . . . Reinforcement 1 | . 1 . Assault . | . . . Garrison . | . . . Intercept . | . . . Searches Triggered . | . . . Construction Impeded . | . . . Haulers Reinforced . | . . . Active Scanning Responses . | . . . Cargo Convoy Interrupts . | . . . Stealth | -11 -10 -10 --------- Run | Yrd Mat Min Distress Signals . | . . . Communications Jammed . | . . . Distress Signals . | . . . Times Spotted 24 | . 16 8 Peak Tracking Total 5 | . 5 3 Tactical Retreats 1 | . . 1 Traps | -11 -10 -10 ------- Run | Yrd Mat Min Traps Triggered . | . . . Indirectly . | . . . Trap Hack Attempts . | . . . Triggered . | . . . Disarmed . | . . . Reprogrammed . | . . . Reused 1 | . . 1 Traps Extracted . | . . . Installed 1 | . . 1 Triggered 1 | . . 1 Most Traps Carried 4 | . . 4 Machines | -11 -10 -10 ---------- Run | Yrd Mat Min Machines Disabled 1 | . . 1 Max in Single Turn 1 | . . 1 Machines Repaired . | . . . Machines Dismantled . | . . . Machines Sabotaged . | . . . Overloaded Fab Kills . | . . . Hacking | -11 -10 -10 --------- Run | Yrd Mat Min Machines Accessed 3 | . 3 . Terminals 3 | . 3 . Fabricators . | . . . Repair Stations . | . . . Recycling Units . | . . . Scanalyzers . | . . . Garrison Access . | . . . Total Hacks 10 | . 10 . Successful 5 | . 5 . Failed 5 | . 5 . Catastrophic 1 | . 1 . Database Lockouts . | . . . Manual 6 | . 6 . Terminals 10 | . 10 . Fabricators . | . . . Repair Stations . | . . . Recycling Units . | . . . Scanalyzers . | . . . Garrison Access . | . . . Terminal Hacks 3 | . 3 . Prototype ID Bank 1 | . 1 . Unreport Threat 1 | . 1 . Locate Traps 1 | . 1 . Fabricator Hacks . | . . . Repair Station Hacks . | . . . Recycling Unit Hacks . | . . . Scanalyzer . | . . . Garrison Access Hacks . | . . . Unauthorized Hacks 2 | . 2 . Terminals 2 | . 2 . Botnet 2 | . 2 . Fabricators . | . . . Repair Stations . | . . . Recycling Units . | . . . Scanalyzers . | . . . Garrison Access . | . . . Data Cores Recovered . | . . . Used . | . . . Hacking Detections 2 | . 2 . Full Trace Events . | . . . Feedback Events . | . . . Feedback Blocked . | . . . Robot Schematics Acquired . | . . . Robots Built . | . . . Authchips . | . . . Time . | . . . Total Robot Build Rating . | . . . Part Schematics Acquired . | . . . Parts Built . | . . . Authchips . | . . . Time . | . . . Total Part Build Rating . | . . . Parts Repaired . | . . . Time . | . . . Parts Recycled . | . . . Recycled Matter . | . . . Retrieved Matter . | . . . Retrieved Components . | . . . Parts Scanalyzed . | . . . Part Schematics Acquired . | . . . Parts Damaged . | . . . Bothacking | -11 -10 -10 ------------ Run | Yrd Mat Min Used RIF Installer . | . . . Robots Hacked . | . . . Non-combat . | . . . Combat . | . . . Robot Hacks Applied . | . . . Relay Couplers Released . | . . . Fabnet Peak Effective % . | . . . Robots Rewired . | . . . Allies Hacked . | . . . Hacks Repelled . | . . . Allies | -11 -10 -10 -------- Run | Yrd Mat Min Total Allies . | . . . Largest Group . | . . . Highest-Rated Group . | . . . Highest-Rated Ally . | . . . Total Orders . | . . . Ally Attacks . | . . . Total Damage . | . . . Kills . | . . . Allies Corrupted . | . . . Allies Melted . | . . . Intel | -11 -10 -10 ------- Run | Yrd Mat Min Robot Analysis Total . | . . . Derelict Logs Recovered 1 | . . 1 Drone Launches . | . . . Drone Recoveries . | . . . Exploration | -11 -10 -10 ------------- Run | Yrd Mat Min Turns Passed 1208 | 62 805 341 Spaces Moved 726 | 49 506 171 Core 3 | 3 . . Treads . | . . . Legs . | . . . Wheels 723 | 46 506 171 Hover . | . . . Flight . | . . . Fastest Speed 50 | 50 90 130 Average Speed 130 | 96 133 134 Slowest Speed 175 | 100 135 175 Overloaded Moves . | . . . Propulsion Burnouts . | . . . Robots Hopped . | . . . Cave-ins Triggered . | . . . Exploration Rate (%) 32 | 3 61 32 Regions Visited 2 Branch Regions 1 Pre-discovered Areas . | . . . Known Exits Taken . | . . . Unknown Exits Taken 2 | 1 1 . Scrap Searched . | . . . Spaces Dug . | . . . Terrain Destroyed . | . . . Melee . | . . . Projectile . | . . . AOE . | . . . Terrain Rammed . | . . . Walls Destroyed . | . . . Machines Disabled . | . . . Actions | -11 -10 -10 --------- Run | Yrd Mat Min Total 895 | 60 601 234 Wait 42 | . 24 18 Move 724 | 48 505 171 Hop . | . . . Pick Up 38 | 6 27 5 Fast Attach 9 | 6 3 . Attach 4 | . 1 3 Detach 2 | . 2 . Swap 11 | . 6 5 Drop 17 | . 12 5 Fire 47 | . 21 26 Melee . | . . . Ram . | . . . Kick . | . . . Crush . | . . . Escape Stasis . | . . . Rewire . | . . . Trap 1 | . . 1 Miscellaneous . | . . . Route ------- -11/Scrapyard -10/Materials (discovered 2 exits: [*Mat] / [*Min]) -10/Mines History --------- Turn | Location | Event 7 | -11/Scrapyard | Discovered new exit (range 16) 63 | -11/Scrapyard | Entered Materials 166 | -10/Materials | Discovered new exit (range 7) 308 | -10/Materials | Build established: Mutant 397 | -10/Materials | Discovered new exit (range 15) 868 | -10/Materials | Entered Mines 989 | -10/Mines | Learned 2 Materials zone layouts 995 | -10/Mines | Found a hidden stash of uninstalled traps 1028 | -10/Mines | Assembled infested the area 1185 | -10/Mines | Core integrity fell below 50% 1200 | -10/Mines | Core integrity fell below 20% 1209 | -10/Mines | Destroyed by D-53 Grenadier with Mini Grenade Launcher Last Messages --------------- 01111_ G-47 Trooper destroyed. 01112_ Acquired 60 matter. 01112_ Overheating: System interference. 01112_ Beam Rifle temporarily disabled. 01120_ Acquired Ion Engine. 01176_ The unstable cave ceiling collapses. 01181_ Ion Engine destroyed. 01184_ T-07 Excavator destroyed. 01189_ Dropped Heavy Explosive Trap. 01190_ Installed Heavy Explosive Trap. 01195_ D-53 Grenadier triggered Heavy Explosive Trap. 01195_ An explosion rips through the floor. 01196_ D-53 Grenadier destroyed. 01197_ Com. Wheel destroyed. 01199_ Ion Engine destroyed. 01199_ Tractor Beam destroyed. 01200_ The unstable cave ceiling collapses. 01207_ Beam Rifle destroyed. 01208_ The unstable cave ceiling collapses. 01209_ Com. Wheel destroyed. Map ----- +----------------------------------------------------+ | ?????????????# ##????????????? | | ?????????????### ####### #????????????? | | ???????????????# #?????## #????????????? | | ???????????????# #??????# #????????????? | | ???????????????# #?????## ##????????????? | | ???????????????# #????## #?????????????? | | ???????????????# #???## #?????????????? | | ???????????????# #???# #?????????????? | | ???????????????# #???# ##?????????????? | | ???????????????# #???# #?????????##???? | | ?????????????### ##??## !#?????????# ???? | | ?????????????# [ ##??#/!!##????????# ???? | | ??????????????## #??# ######???# ???? | | ?????????????## # #??# #???# ???? | | ?????????????# = ##??# ##### ##### ###? | | ????????????## == #???# ##??????? ## | | ??????????### #???# #??????????# # | | ????????### ##### #??????????# =# | | ????????# #??????????# ** | | ???????## ##### #??????????# [# | | ???????# % ##??# #??????????## ## | | ???????# #### ######?????####? | | ???????# # #?????????? | | ???????## ##### #########?? | | ????????# d #??# #?? | | ???????## @ # #???######### ### | | ???????# # ##???????????# | | ??????## # #??????????????##### | | ???#### ##??????????????????? | | ???# ##???????????????????? | | ??# ### #????????????????????? | | ?# ##?# #????????????????????? | | ?# ###??## ##????????????????????? | | ?## #??????########?????????????????????? | | ??###????????????????????????????????????? | | ?????????????????????????????????????????? | | | | | | | | | | | | | | | | | | | | | | | | | | | | | +----------------------------------------------------+ Best States ------------- Heat Dissipation 25 Energy Generation 10 Energy Capacity 250 Matter Stores 300 Matter Capacity 300 Sight Range 16 Terrain Scan Range 14 Terrain Scan Density 10 Evasion (%) 40 Item Schematics ----------------- None Robot Schematics ------------------ None Fabricated ------------ Nothing Alien Tech Used ----------------- None Achievements -------------- None Challenges ------------ None Game ------ Seed NovaHackingBeam Manual? 0 Play Time 00:16:13 Cumulative 151.5 hours Start 2024.07.26 @ 16:39:43 End 2024.07.26 @ 16:52:49 Sessions 1 Manual Loads 0 Difficulty Rogue Special Mode None Game No. 159 Rogue 159 Adventurer 0 Explorer 0 Win Type - Total 0 Types 0/0/0/0/0/0/0/0/0 Lore% 28 Gallery% 56 Achievement% 37 Wizard Run 0 Options --------- Layout 0 ASCII 0 Keyboard 1 Movement Vi Keybinds 0 Fullscreen 2 Font 24/Smallcaps Map View 76x50 Zoom Use 0% Tactical HUD 1 Map Filters NONE Filters NONE Steam 1 RUN: af3525b2-23b1-4534-9488-95b234882dab